Cogmind - Beta 10.1 *** ADVENTURER MODE // 2020.09.28 @ 15:29:08 Player: erecorar Result: Destroyed by S-10 Pest with Light Assault Rifle Performance ------------- Evolutions (0) 0 Regions Visited (2) 400 Robots Destroyed (10) 50 Value Destroyed (244) 244 Prototype IDs (2) 40 Alien Tech Used (0) 0 Bonus (0) 0 TOTAL SCORE: 734 Bonus ------- None Cogmind --------- Core Integrity 0/250 Matter 290/300 Energy 130/160 System Corruption 5% Temperature Cool (0) Movement Walking (180) Ox2 Location -10/Mines Parts ------- > --- POWER (1) -------- Light Nuclear Core > --- PROPULSION (2) --- Aluminum Leg > --- UTILITY (2) ------ Large Storage Unit Core Shielding > --- WEAPON (2) ------- (None) > --- INVENTORY (10) --- Light Nuclear Core Aluminum Leg Aluminum Leg Aluminum Leg Compact Wheel Compact Wheel Compact Wheel Small Storage Unit Peak State ------------ > --- POWER ------------ Ion Engine > --- PROPULSION ------- Compact Wheel Compact Wheel > --- UTILITY ---------- Small Storage Unit Large Storage Unit > --- WEAPON ----------- Beam Cannon Assault Rifle > --- INVENTORY -------- Light Ion Engine Light Ion Engine Aluminum Leg Aluminum Leg Compact Wheel Compact Wheel Flight Unit Flight Unit Flight Unit Medium Laser [Rating: 8] Favorites ----------- Power Ion Engine Engine Ion Engine Power Core Light Nuclear Core Propulsion Compact Wheel Wheel Compact Wheel Utility Large Storage Unit Storage Large Storage Unit Protection Core Shielding Weapon Assault Rifle Energy Gun Medium Laser Energy Cannon Beam Cannon Ballistic Gun Assault Rifle Special Weapon Mining Laser Build | -11 -10 -10 ------- Run | Scr Mat Min Slots Evolved . | . . . Power . | . . . Propulsion . | . . . Utility . | . . . Weapon . | . . . Parts Attached 17 | 6 9 2 Power 2 | 1 1 . Engine 1 | 1 . . Core 1 | . 1 . Reactor . | . . . Propulsion 7 | 2 3 2 Treads . | . . . Leg 1 | . . 1 Wheel 6 | 2 3 1 Hover . | . . . Flight . | . . . Utility 3 | 1 2 . Device . | . . . Storage 2 | 1 1 . Processor . | . . . Hackware . | . . . Protection 1 | . 1 . Artifact . | . . . Weapon 5 | 2 3 . Energy Gun 1 | 1 . . Energy Cannon 1 | . 1 . Ballistic Gun 1 | 1 . . Ballistic Cannon . | . . . Launcher . | . . . Special Weapon 2 | . 2 . Impact Weapon . | . . . Slashing Weapon . | . . . Piercing Weapon . | . . . Special Melee Weapon . | . . . Unidentified Prototypes . | . . . Parts Lost 7 | . 6 1 Power 1 | . 1 . Propulsion 2 | . 1 1 Utility . | . . . Weapon 4 | . 4 . Highest Loss Streak 3 | . 3 1 Average Slot Usage (%) 87 | . 93 69 Engine 9 | . 11 . Core 4 | . 1 14 Wheel 27 | . 28 26 Storage 16 | . 16 14 Protection 11 | . 10 14 Energy Gun 1 | . 2 . Energy Cannon 5 | . 7 . Ballistic Gun 7 | . 10 . Special Weapon 2 | . 3 . Naked Turns . | . . . Heaviest Build 30 | 13 30 22 Greatest Support 32 | 32 32 32 Greatest Overweight (x) 1 | 1 1 1 Average Overweight (x) . | . . . Largest Inventory Capacity 12 | 6 12 10 Average Capacity 9 | 5 10 10 Most Carried 11 | 4 11 10 Average Carried 7 | 2 7 8 Final Capacity 10 | 6 10 10 Final Carried 8 | 4 8 8 Class Distribution -------------------- 100% | Mutant Dominant Class ---------------- Mutant | -10/Materials Mutant | -10/Mines Resources | -11 -10 -10 ----------- Run | Scr Mat Min Matter Collected 424 | 235 132 57 Remotely . | . . . Salvage Created 300 | . 250 50 Parts 26 | . 22 4 Haulers Intercepted 1 | . 1 . Recyclers Shooed . | . . . Parts Field Recycled . | . . . Retrieved Matter . | . . . Parts Self-Destructed . | . . . Prevented . | . . . Kills | -11 -10 -10 ------- Run | Scr Mat Min Combat Hostiles Destroyed 8 | . 7 1 Melee 1 | . . 1 Guns 4 | . 4 . Cannons 3 | . 3 . Classes Destroyed 4 | . 4 . Hauler 1 | . 1 . Watcher 1 | . 1 . Swarmer 3 | . 3 . Grunt 5 | . 4 1 Best Kill Streak 4 | . 4 1 Combat Bots Only 4 | . 4 1 Max Kills in Single Turn 1 | . 1 1 Gunslinging . | . . . Exploded . | . . . Melee 1 | . . 1 Uniques/NPCs Destroyed . | . . . Combat | -11 -10 -10 -------- Run | Scr Mat Min Damage Taken 863 | . 650 213 Core 251 | . 144 107 Absorbed by Shields . | . . . Core Remaining (%) 100 | 100 . . Volleys Fired 42 | . 42 . Largest 2 | . 2 . Hottest 200 | . 200 . Shots Fired 66 | . 66 . Gun 44 | . 44 . Cannon 15 | . 15 . Launcher . | . . . Special 7 | . 7 . Kinetic 36 | . 36 . Thermal 30 | . 30 . Explosive . | . . . Electromagnetic . | . . . Robot Hit Streak 12 | . 12 . Robot Miss Streak 5 | . 5 . Penetration Max . | . . . Secondary Targets 2 | . 2 . Max Gunslinging Chain 1 | . 1 . Shots Hit Robots 41 | . 41 . Core Hits 19 | . 11 8 Critical Hits 1 | . 1 . Critical Kills 1 | . 1 . Critical Parts Destroyed . | . . . Melee Attacks . | . . . Impact . | . . . Slashing . | . . . Piercing . | . . . Sneak Attacks . | . . . Combat Hostiles . | . . . Follow-up Attacks . | . . . Damage Inflicted 669 | . 610 59 Guns 345 | . 345 . Cannons 142 | . 142 . Explosions . | . . . Melee . | . . . Ramming 86 | . 27 59 Kinetic 257 | . 257 . Thermal 326 | . 326 . Explosive . | . . . Electromagnetic . | . . . Impact . | . . . Slashing . | . . . Piercing . | . . . Highest Corruption 5 | . . 5 Average Corruption 4 | . . 4 Corruption Purged . | . . . Effects 1 | . . 1 Data Loss (major) 1 | . . 1 Overload Shots . | . . . Overflow Damage . | . . . Projectiles . | . . . Explosions . | . . . Melee . | . . . Knockbacks 1 | . 1 . Impact 1 | . 1 . Kinetic . | . . . Secondary . | . . . Self-Inflicted Damage 39 | . 13 26 Shots . | . . . Rammed 14 | . 2 12 Targets Rammed 14 | . 2 12 Kicked . | . . . Crushed . | . . . Highest Temperature 126 | . 126 . Average Temperature 38 | . 38 . Received Heat Transfer 510 | . 408 102 Siege Activations . | . . . Robots Corrupted . | . . . Combat Hostiles . | . . . Parts Fried . | . . . Impact Corruptions . | . . . Robots Melted . | . . . Combat Hostiles . | . . . Parts Melted 2 | . 2 . Heat Transferred 755 | . 755 . Parts Sabotaged . | . . . Parts Stolen . | . . . Parts Stripped . | . . . Power Chain Reactions . | . . . Missiles Intercepted . | . . . Alert | -11 -10 -10 ------- Run | Scr Mat Min Peak Influence 202 | . 202 21 Initial 11 | . . 11 Average 73 | . 100 11 Maximum Alert Level 1 | . 1 . Low Security (%) 98 | 100 97 100 Level 1 1 | . 2 . Level 2 . | . . . Level 3 . | . . . Level 4 . | . . . Level 5 . | . . . High Security . | . . . Max Security . | . . . Squads Dispatched . | . . . Investigation . | . . . Extermination . | . . . Reinforcement . | . . . Assault . | . . . Garrison . | . . . Intercept . | . . . Construction Impeded . | . . . Haulers Reinforced . | . . . Stealth | -11 -10 -10 --------- Run | Scr Mat Min Distress Signals 1 | . 1 . Communications Jammed . | . . . Distress Signals . | . . . Times Spotted 24 | . 19 5 Peak Tracking Total 5 | . 5 5 Tactical Retreats 2 | . 2 . Traps | -11 -10 -10 ------- Run | Scr Mat Min Traps Triggered . | . . . Indirectly . | . . . Trap Hack Attempts . | . . . Triggered . | . . . Disarmed . | . . . Reprogrammed . | . . . Reused . | . . . Traps Extracted . | . . . Installed . | . . . Triggered . | . . . Machines | -11 -10 -10 ---------- Run | Scr Mat Min Machines Disabled . | . . . Max in Single Turn . | . . . Machines Sabotaged . | . . . Garrisons Compromised . | . . . Overloaded Fab Kills . | . . . Fab Network Shutdowns . | . . . Hacking | -11 -10 -10 --------- Run | Scr Mat Min Machines Accessed 5 | . 5 . Terminals 4 | . 4 . Fabricators . | . . . Repair Stations . | . . . Recycling Units 1 | . 1 . Scanalyzers . | . . . Garrison Access . | . . . Total Hacks 9 | . 9 . Successful 6 | . 6 . Failed 3 | . 3 . Catastrophic . | . . . Database Lockouts . | . . . Manual . | . . . Terminals 7 | . 7 . Fabricators . | . . . Repair Stations . | . . . Recycling Units 2 | . 2 . Scanalyzers . | . . . Garrison Access . | . . . Terminal Hacks 4 | . 4 . Record 1 | . 1 . Robot Analysis 2 | . 2 . Prototype ID Bank 1 | . 1 . Fabricator Hacks . | . . . Repair Station Hacks . | . . . Recycling Unit Hacks 2 | . 2 . Report Inventory 1 | . 1 . Retrieve Components 1 | . 1 . Scanalyzer . | . . . Garrison Access Hacks . | . . . Unauthorized Hacks . | . . . Terminals . | . . . Fabricators . | . . . Repair Stations . | . . . Recycling Units . | . . . Scanalyzers . | . . . Garrison Access . | . . . Data Cores Recovered . | . . . Used . | . . . Hacking Detections 1 | . 1 . Full Trace Events . | . . . Feedback Events . | . . . Feedback Blocked . | . . . Robot Schematics Acquired . | . . . Robots Built . | . . . Matter . | . . . Time . | . . . Total Robot Build Rating . | . . . Part Schematics Acquired . | . . . Parts Built . | . . . Matter . | . . . Time . | . . . Total Part Build Rating . | . . . Parts Repaired . | . . . Time . | . . . Parts Recycled . | . . . Recycled Matter . | . . . Retrieved Matter . | . . . Retrieved Components 9 | . 9 . Parts Scanalyzed . | . . . Part Schematics Acquired . | . . . Parts Damaged . | . . . Bothacking | -11 -10 -10 ------------ Run | Scr Mat Min Used RIF Installer . | . . . Robots Hacked . | . . . Non-combat . | . . . Combat . | . . . Robot Hacks Applied . | . . . Relay Couplers Released . | . . . Robots Rewired . | . . . Allies Hacked . | . . . Hacks Repelled . | . . . Allies | -11 -10 -10 -------- Run | Scr Mat Min Total Allies . | . . . Largest Group . | . . . Highest-Rated Group . | . . . Highest-Rated Ally . | . . . Total Orders . | . . . Ally Attacks . | . . . Total Damage . | . . . Kills . | . . . Allies Corrupted . | . . . Allies Melted . | . . . Intel | -11 -10 -10 ------- Run | Scr Mat Min Robot Analysis Total 2 | . 2 . Derelict Logs Recovered 1 | . . 1 Drone Launches . | . . . Drone Recoveries . | . . . Exploration | -11 -10 -10 ------------- Run | Scr Mat Min Turns Passed 766 | 67 539 160 Spaces Moved 563 | 57 389 117 Core 7 | 7 . . Treads . | . . . Legs . | . . . Wheels 556 | 50 389 117 Hover . | . . . Flight . | . . . Fastest Speed 50 | 50 100 100 Average Speed 99 | 94 100 100 Slowest Speed 110 | 100 110 110 Overloaded Moves . | . . . Propulsion Burnouts . | . . . Robots Hopped . | . . . Cave-ins Triggered . | . . . Exploration Rate (%) 30 | 3 54 34 Regions Visited 2 Branch Regions 1 Pre-discovered Areas . | . . . Known Exits Taken . | . . . Unknown Exits Taken 2 | 1 1 . Scrap Searched . | . . . Spaces Dug 2 | . 2 . Terrain Destroyed 3 | . 3 . Melee . | . . . Projectile 3 | . 3 . AOE . | . . . Terrain Rammed . | . . . Walls Destroyed . | . . . Machines Disabled . | . . . Actions | -11 -10 -10 --------- Run | Scr Mat Min Total 680 | 66 457 157 Wait 21 | . 1 20 Move 561 | 56 388 117 Hop . | . . . Pick Up 17 | 4 10 3 Fast Attach 9 | 6 3 . Attach 2 | . 2 . Detach . | . . . Swap 6 | . 4 2 Drop 8 | . 5 3 Fire 42 | . 42 . Melee . | . . . Ram 14 | . 2 12 Kick . | . . . Crush . | . . . Escape Stasis . | . . . Rewire . | . . . Trap . | . . . Miscellaneous . | . . . Route ------- -11/Scrapyard -10/Materials -10/Mines History --------- Turn | Location | Event 17 | -11/Scrapyard | Discovered new exit (range 15) 68 | -11/Scrapyard | Entered Materials 241 | -10/Materials | Discovered new exit (range 14) 303 | -10/Materials | Build established: Mutant 490 | -10/Materials | Core integrity fell below 50% 502 | -10/Materials | Lost 3 parts (1n2w) 607 | -10/Materials | Entered Mines 616 | -10/Mines | Met a Derelict bent on vengeance 709 | -10/Mines | Learned 2 Materials zone layouts 751 | -10/Mines | Core integrity fell below 20% 767 | -10/Mines | Destroyed by S-10 Pest with Light Assault Rifle Last Messages --------------- 00654_ Acquired Lgt. Nuclear Core. 00656_ Acquired 10 matter. 00666_ Dropped Aluminum Leg. 00669_ Dropped Com. Wheel. 00705_ K-01 Serf collects debris. 00707_ Slammed into K-01 Serf. 00708_ Slammed into U-05 Engineer. 00709_ Acquired derelict log, extracted data. Data stored: Materials zone layouts (x2). 00742_ Slammed into G-47 Trooper. 00743_ Slammed into G-34 Mercenary. 00748_ Com. Wheel destroyed. 00748_ System corrupted by crushing effect (+3). 00750_ Slammed into G-34 Mercenary. 00751_ G-34 Mercenary destroyed. 00751_ Destabilizing: System corrupted (+2). 00755_ System corrupted: Substantial component data lost. 00763_ Slammed into G-47 Trooper. 00763_ Com. Wheel permanently disabled. 00763_ Destabilizing: Short circuit. Map ----- +----------------------------------------------------+ | ???????????????????????# #?????# ### #???? | | ???????????????????????# ##???# ????? | | ???????????????????????## ##??# ?????? | | ????????????????????????## #??# #??????? | | ?????????????????????????# #### ##?????? | | ?????? #????????????????# ## ##????? | | ???? ????????????????# #????? | | ????# ?????###????????# #????? | | ????# ???## ????????# ##????? | | ????# ???? ???????## ##?????? | | ???## ???? ????????## ##??????? | | ??## ????# ?????????## #???????? | | ??# #???? ??????????## #???????? | | ??? ???? ??????????## #???????? | | ???# ????? ???????#### ##???????? | | ??## ????? ??????## #????????? | | ??# #?????? ##????# ##????????? | | ??# ##????? #????# ##?????????? | | ??# ##????? ####### #??????????? | | ??# #?????%= ? ###### #??????????? | | ??# #######%#??# #????# #??????????? | | ???# %%%%%%#??# #????# #??????????? | | ???## #######%#??# #????# #??????????? | | ????## #?????#s#??# #????# #??????????? | | ?????## ##?????#s#### ###### #??????????? | | ??????#####??????#g@s #??????????? | | ?????????????????############# ###????????? | | ??????????????????????????# #????????? | | ??????????????????????????# !!!! #????????? | | ??????????????????????????# !! ! #????????? | | ??????????????????????????# !!!! #????????? | | ??????????????????????????# ! ! #????????? | | ?????????????????????????? #????????? | | ?????????????????????????## #????????? | | ??????????????????????????# #????????? | | ??????????????????????????#########????????? | | ???????????????????????????????????????????? | | ???????????????????????????????????????????? | | ???????????????????????????????????????????? | | ???????????????????????????????????????????? | | ???????????????????????????????????????????? | | ???????????????????????????????????????????? | | ???????????????????????????????????????????? | | ???????????????????????????????????????????? | | ???????????????????????????????????????????? | | ???????????????????????????????????????????? | | ???????????????????????????????????????????? | | | | | | | +----------------------------------------------------+ Best States ------------- Heat Dissipation 25 Energy Generation 14 Energy Capacity 250 Matter Stores 300 Matter Capacity 300 Sight Range 16 Terrain Scan Density 10 Resistance: KI 20 Resistance: TH 20 Resistance: EX 20 Resistance: EM 20 Resistance: I 20 Resistance: S 20 Resistance: P 20 Core Shielding 20 Evasion (%) 40 Offensive Hacking 10 Item Schematics ----------------- None Robot Schematics ------------------ None Fabricated ------------ Nothing Alien Tech Used ----------------- None Achievements -------------- None Challenges ------------ None Game ------ Seed IonDisruptionFirepult Manual? 0 Play Time 00:20:39 Cumulative 10.0 hours Start 2020.09.28 @ 15:04:12 End 2020.09.28 @ 15:29:08 Sessions 1 Manual Loads 0 Difficulty Adventurer Special Mode None Game No. 29 Rogue 27 Adventurer 2 Explorer 0 Win Type - Total 0 Types 0/0/0/0/0/0/0/0/0 Lore% 16 Gallery% 21 Achievement% 12 Wizard Run 0 Options --------- ASCII 0 Keyboard 1 Movement Numpad Keybinds 0 Fullscreen 1 Font 18/SmallcapsGlow Map View 76x50 Tactical HUD 1 Map Filters NONE Filters NONE Steam 1 RUN: b0c78ab7-dbe3-4672-ba19-2b1c04e27976